[Event "*** Titled Tuesday Blitz"]
[Site "Chess.com"]
[Date "2020.12.01"]
[Round "4"]
[White "Mikasinski"]
[Black "ZEN-22"]
[Result "1-0"]
[WhiteElo "2288"]
[BlackElo "2429"]
[TimeControl "180+1"]
[EndTime "10:39:05 PST"]
[Termination "Mikasinski won by resignation"]

1. e4 {[%clk 0:03:00.8]} 1... c5 {[%clk 0:03:00.6]} 2. Nf3 {[%clk 0:03:00.7]}
2... Nf6 {[%clk 0:03:01.4]} 3. Nc3 {[%clk 0:02:59.4]} 3... d5 {[%clk 0:03:00.7]}
4. exd5 {[%clk 0:02:58.3]} 4... Nxd5 {[%clk 0:02:58.1]} 5. d4 {[%clk 0:02:55.6]}
5... cxd4 {[%clk 0:02:56.6]} 6. Qxd4 {[%clk 0:02:51.4]} 6... Nxc3 {[%clk
0:02:54.2]} 7. bxc3 {[%clk 0:02:45.1]} 7... Nc6 {[%clk 0:02:51.7]} 8. Bb5 {[%clk
0:02:41.4]} 8... Qxd4 {[%clk 0:02:46.6]} 9. cxd4 {[%clk 0:02:37.6]} 9... Bd7
{[%clk 0:02:46.7]} 10. d5 {[%clk 0:02:35.8]} 10... Ne5 {[%clk 0:02:41.8]} 11.
Bxd7+ {[%clk 0:02:27.5]} 11... Nxd7 {[%clk 0:02:41.3]} 12. Be3 {[%clk
0:02:07.8]} 12... b6 {[%clk 0:02:32]} 13. c4 {[%clk 0:01:49.8]} 13... Rc8 {[%clk
0:02:31]} 14. Rc1 {[%clk 0:01:48.1]} 14... g6 {[%clk 0:02:29.9]} 15. Bd4 {[%clk
0:01:45.9]} 15... Bh6 {[%clk 0:02:29]} 16. Rc2 {[%clk 0:01:40.8]} 16... O-O
{[%clk 0:02:27]} 17. O-O {[%clk 0:01:40.3]} 17... Rfd8 {[%clk 0:02:25.8]} 18.
Re1 {[%clk 0:01:40.1]} 18... Kf8 {[%clk 0:02:25]} 19. g4 {[%clk 0:01:18.1]}
19... Bf4 {[%clk 0:02:18.3]} 20. Re4 {[%clk 0:01:13.8]} 20... Bd6 {[%clk
0:02:17]} 21. Rce2 {[%clk 0:01:05.7]} 21... h6 {[%clk 0:01:59.4]} 22. Be3 {[%clk
0:01:05.5]} 22... g5 {[%clk 0:01:58.1]} 23. Bd4 {[%clk 0:00:43.7]} 23... f6
{[%clk 0:01:40.7]} 24. Bb2 {[%clk 0:00:37]} 24... Nc5 {[%clk 0:01:40]} 25. Rd4
{[%clk 0:00:32.9]} 25... Na4 {[%clk 0:01:38.9]} 26. Ba1 {[%clk 0:00:30.9]} 26...
Bc5 {[%clk 0:01:35.5]} 27. Rde4 {[%clk 0:00:30.8]} 27... Rd7 {[%clk 0:01:28.2]}
28. Kg2 {[%clk 0:00:30]} 28... Bb4 {[%clk 0:01:25.8]} 29. Nd4 {[%clk 0:00:29.1]}
29... Kf7 {[%clk 0:01:21.8]} 30. Nc6 {[%clk 0:00:28.1]} 30... Bd6 {[%clk
0:01:15.7]} 31. Bd4 {[%clk 0:00:26.3]} 31... Rdc7 {[%clk 0:01:10.2]} 32. Re6
{[%clk 0:00:23.5]} 32... Rxc6 {[%clk 0:01:09.7]} 33. dxc6 {[%clk 0:00:23.6]}
33... Rxc6 {[%clk 0:01:10.6]} 34. h4 {[%clk 0:00:11]} 34... Rxc4 {[%clk
0:01:01.3]} 35. R6e4 {[%clk 0:00:11.2]} 35... gxh4 {[%clk 0:00:51]} 36. Kh3
{[%clk 0:00:11.4]} 36... Nc3 {[%clk 0:00:49.3]} 37. Bxc3 {[%clk 0:00:11.6]}
37... Rxc3+ {[%clk 0:00:49.8]} 38. R4e3 {[%clk 0:00:12]} 38... Rc1 {[%clk
0:00:49.4]} 39. Kxh4 {[%clk 0:00:10.9]} 39... Rh1+ {[%clk 0:00:47]} 40. Rh3
{[%clk 0:00:11.2]} 40... Rf1 {[%clk 0:00:45]} 41. Rd3 {[%clk 0:00:06.4]} 41...
Bc5 {[%clk 0:00:40.1]} 42. Kg3 {[%clk 0:00:06.2]} 42... e5 {[%clk 0:00:38.1]}
43. Kg2 {[%clk 0:00:06.3]} 43... Kg6 {[%clk 0:00:38.4]} 44. Kxf1 {[%clk
0:00:06.1]} 44... a5 {[%clk 0:00:38.4]} 45. Rb3 {[%clk 0:00:05.7]} 45... a4
{[%clk 0:00:38.1]} 46. Rh3 {[%clk 0:00:05.8]} 46... Bd4 {[%clk 0:00:37]} 47. Rh5
{[%clk 0:00:05.9]} 47... b5 {[%clk 0:00:37.9]} 48. a3 {[%clk 0:00:06.1]} 48...
b4 {[%clk 0:00:38.8]} 49. axb4 {[%clk 0:00:06.2]} 49... Bc3 {[%clk 0:00:38.9]}
50. b5 {[%clk 0:00:05.6]} 50... a3 {[%clk 0:00:38]} 51. Ra2 {[%clk 0:00:05.7]}
51... Bb4 {[%clk 0:00:36.6]} 52. b6 {[%clk 0:00:05.9]} 52... Bd6 {[%clk
0:00:36.4]} 53. b7 {[%clk 0:00:05.9]} 53... e4 {[%clk 0:00:37]} 54. Rxa3 {[%clk
0:00:05.8]} 54... f5 {[%clk 0:00:36.6]} 55. Rxf5 {[%clk 0:00:05.2]} 55... h5
{[%clk 0:00:36]} 56. Ra6 {[%clk 0:00:05.3]} 1-0

[Event "*** Titled Tuesday Blitz"]
[Site "Chess.com"]
[Date "2020.12.01"]
[Round "4"]
[White "Sebastian"]
[Black "Vincent_Vega95"]
[Result "1-0"]
[WhiteElo "2950"]
[BlackElo "2761"]
[TimeControl "180+1"]
[EndTime "10:39:08 PST"]
[Termination "Sebastian won by checkmate"]

1. e4 {[%clk 0:03:00.9]} 1... c5 {[%clk 0:02:59.1]} 2. Nf3 {[%clk 0:03:00.8]}
2... Nc6 {[%clk 0:02:59.4]} 3. d4 {[%clk 0:03:01.1]} 3... cxd4 {[%clk
0:02:59.4]} 4. Nxd4 {[%clk 0:03:02]} 4... Nf6 {[%clk 0:02:59.9]} 5. Nc3 {[%clk
0:03:02.4]} 5... e5 {[%clk 0:03:00.6]} 6. Ndb5 {[%clk 0:03:02.1]} 6... d6 {[%clk
0:03:00.8]} 7. Bg5 {[%clk 0:03:02.7]} 7... a6 {[%clk 0:03:01]} 8. Na3 {[%clk
0:03:03.3]} 8... b5 {[%clk 0:03:01.4]} 9. Nd5 {[%clk 0:03:03.9]} 9... Be7 {[%clk
0:03:01.4]} 10. Bxf6 {[%clk 0:03:04.6]} 10... Bxf6 {[%clk 0:03:02]} 11. c3
{[%clk 0:03:05.2]} 11... Bg5 {[%clk 0:02:56.4]} 12. Nc2 {[%clk 0:03:05]} 12...
Ne7 {[%clk 0:02:55.7]} 13. h4 {[%clk 0:02:58.7]} 13... Bh6 {[%clk 0:02:50.2]}
14. Ncb4 {[%clk 0:02:58.8]} 14... O-O {[%clk 0:02:43.9]} 15. a4 {[%clk
0:02:58.7]} 15... bxa4 {[%clk 0:02:43.2]} 16. Qxa4 {[%clk 0:02:58.6]} 16... a5
{[%clk 0:02:28.1]} 17. Bb5 {[%clk 0:02:57.6]} 17... Bb7 {[%clk 0:02:11.7]} 18.
Nc6 {[%clk 0:02:45.7]} 18... Bxc6 {[%clk 0:02:11.1]} 19. Bxc6 {[%clk 0:02:45.8]}
19... Rb8 {[%clk 0:02:11.6]} 20. b4 {[%clk 0:02:19.4]} 20... Nxd5 {[%clk
0:01:00.2]} 21. Bxd5 {[%clk 0:02:18.5]} 21... axb4 {[%clk 0:01:00.5]} 22. cxb4
{[%clk 0:02:18.2]} 22... Qb6 {[%clk 0:01:00.8]} 23. Rh3 {[%clk 0:02:02.3]} 23...
Qd4 {[%clk 0:00:42.1]} 24. b5 {[%clk 0:01:15.7]} 24... Bd2+ {[%clk 0:00:30]} 25.
Ke2 {[%clk 0:01:03.3]} 25... Bb4 {[%clk 0:00:29.2]} 26. Rf3 {[%clk 0:00:42.5]}
26... g6 {[%clk 0:00:12.5]} 27. Kf1 {[%clk 0:00:22.4]} 27... Rxb5 {[%clk
0:00:09.4]} 28. Rd1 {[%clk 0:00:15.5]} 28... Qb6 {[%clk 0:00:08]} 29. Rb3 {[%clk
0:00:13.4]} 29... Rb8 {[%clk 0:00:05.8]} 30. Rdb1 {[%clk 0:00:13.4]} 30... Qc5
{[%clk 0:00:05.6]} 31. g3 {[%clk 0:00:10.5]} 31... Kg7 {[%clk 0:00:05.8]} 32.
Kg2 {[%clk 0:00:10.5]} 32... R5b6 {[%clk 0:00:05.9]} 33. Qd7 {[%clk 0:00:09.7]}
33... Rf8 {[%clk 0:00:05.9]} 34. Rf3 {[%clk 0:00:10.2]} 34... Kh6 {[%clk
0:00:02.5]} 35. Rxf7 {[%clk 0:00:09.2]} 35... Rxf7 {[%clk 0:00:03]} 36. Qxf7
{[%clk 0:00:09.5]} 36... Qc8 {[%clk 0:00:03.2]} 37. Rb3 {[%clk 0:00:07.1]} 37...
Bc5 {[%clk 0:00:03.2]} 38. Rf3 {[%clk 0:00:06.6]} 38... Rb8 {[%clk 0:00:03.4]}
39. Qf6 {[%clk 0:00:05.4]} 39... Qd8 {[%clk 0:00:03.7]} 40. Qe6 {[%clk
0:00:04.1]} 40... Qe8 {[%clk 0:00:04.1]} 41. Qg4 {[%clk 0:00:03.8]} 41... Qd8
{[%clk 0:00:03.8]} 42. Rf7 {[%clk 0:00:03.2]} 42... Rb2 {[%clk 0:00:03.8]} 43.
Kh3 {[%clk 0:00:02.8]} 43... Rxf2 {[%clk 0:00:03.4]} 44. Rxf2 {[%clk 0:00:02.3]}
44... Bxf2 {[%clk 0:00:03.2]} 45. Qf3 {[%clk 0:00:03.2]} 45... Bc5 {[%clk
0:00:03.6]} 46. g4 {[%clk 0:00:03.6]} 46... Qe8 {[%clk 0:00:03.4]} 47. g5+
{[%clk 0:00:02.7]} 47... Kg7 {[%clk 0:00:03.5]} 48. Qf6# {[%clk 0:00:03.6]} 1-0

[Event "*** Titled Tuesday Blitz"]
[Site "Chess.com"]
[Date "2020.12.01"]
[Round "4"]
[White "ArjunErigaisi2003"]
[Black "Faqade"]
[Result "1-0"]
[WhiteElo "2917"]
[BlackElo "2699"]
[TimeControl "180+1"]
[EndTime "10:39:12 PST"]
[Termination "ArjunErigaisi2003 won by resignation"]

1. c4 {[%clk 0:03:00.8]} 1... Nf6 {[%clk 0:02:59.4]} 2. Nc3 {[%clk 0:03:00.4]}
2... g6 {[%clk 0:02:59.8]} 3. e4 {[%clk 0:03:00.3]} 3... d6 {[%clk 0:03:00.4]}
4. d4 {[%clk 0:02:59.8]} 4... Bg7 {[%clk 0:03:00.9]} 5. Be2 {[%clk 0:02:59.1]}
5... O-O {[%clk 0:02:56.9]} 6. Bg5 {[%clk 0:02:59.2]} 6... c6 {[%clk 0:02:51.2]}
7. Qd2 {[%clk 0:02:53.5]} 7... a6 {[%clk 0:02:41.3]} 8. a4 {[%clk 0:02:23.3]}
8... e5 {[%clk 0:02:40.7]} 9. dxe5 {[%clk 0:02:11.5]} 9... dxe5 {[%clk 0:02:38]}
10. Qxd8 {[%clk 0:02:11.8]} 10... Rxd8 {[%clk 0:02:38.9]} 11. a5 {[%clk
0:02:05.8]} 11... Be6 {[%clk 0:02:32]} 12. Nf3 {[%clk 0:01:52.3]} 12... Nbd7
{[%clk 0:02:30.4]} 13. h3 {[%clk 0:01:39]} 13... Nc5 {[%clk 0:02:22.9]} 14. b4
{[%clk 0:01:31.8]} 14... Nb3 {[%clk 0:02:17.6]} 15. Rd1 {[%clk 0:01:27.6]} 15...
h6 {[%clk 0:02:12.5]} 16. Be3 {[%clk 0:01:24.7]} 16... Bf8 {[%clk 0:02:01.4]}
17. c5 {[%clk 0:01:13.1]} 17... Bg7 {[%clk 0:01:52]} 18. O-O {[%clk 0:01:05.9]}
18... Nd4 {[%clk 0:01:32.5]} 19. Nxd4 {[%clk 0:00:58.4]} 19... exd4 {[%clk
0:01:29.3]} 20. Bxd4 {[%clk 0:00:54.2]} 20... Bb3 {[%clk 0:01:24.9]} 21. Rd2
{[%clk 0:00:38.9]} 21... Nxe4 {[%clk 0:01:19.3]} 22. Nxe4 {[%clk 0:00:39.8]}
22... Bxd4 {[%clk 0:01:18.8]} 23. Nd6 {[%clk 0:00:39.1]} 23... Be5 {[%clk
0:01:12]} 24. Bf3 {[%clk 0:00:29.1]} 24... Rd7 {[%clk 0:01:00.5]} 25. Rd3 {[%clk
0:00:23.6]} 25... Bxd6 {[%clk 0:00:57.6]} 26. Rxb3 {[%clk 0:00:17.9]} 26... Be5
{[%clk 0:00:57.4]} 27. g3 {[%clk 0:00:16.2]} 27... Rd2 {[%clk 0:00:53.5]} 28.
Re1 {[%clk 0:00:14.8]} 28... Bf6 {[%clk 0:00:43.1]} 29. Kg2 {[%clk 0:00:12.8]}
29... Rad8 {[%clk 0:00:40.1]} 30. Re2 {[%clk 0:00:12.1]} 30... R2d3 {[%clk
0:00:34.7]} 31. Rxd3 {[%clk 0:00:09.9]} 31... Rxd3 {[%clk 0:00:35.6]} 32. Re8+
{[%clk 0:00:09.7]} 32... Kg7 {[%clk 0:00:35.6]} 33. Rb8 {[%clk 0:00:10.6]} 33...
Rd2 {[%clk 0:00:33.9]} 34. Rxb7 {[%clk 0:00:08.5]} 34... Bd4 {[%clk 0:00:34.4]}
35. g4 {[%clk 0:00:03.5]} 35... Rxf2+ {[%clk 0:00:19.8]} 36. Kg3 {[%clk
0:00:04]} 36... h5 {[%clk 0:00:18.2]} 37. gxh5 {[%clk 0:00:03.3]} 37... gxh5
{[%clk 0:00:19.1]} 38. Bxc6 {[%clk 0:00:03.2]} 38... Rf5 {[%clk 0:00:18.3]} 39.
h4 {[%clk 0:00:02.5]} 39... Be5+ {[%clk 0:00:17.6]} 40. Kg2 {[%clk 0:00:03]}
40... Rf4 {[%clk 0:00:16.5]} 41. Bd5 {[%clk 0:00:03.5]} 41... Bc3 {[%clk
0:00:15.4]} 42. c6 {[%clk 0:00:03.6]} 42... Rg4+ {[%clk 0:00:08.9]} 43. Kf3
{[%clk 0:00:03.5]} 43... Be5 {[%clk 0:00:09.4]} 44. Rxf7+ {[%clk 0:00:03.1]}
44... Kg6 {[%clk 0:00:09.5]} 45. c7 {[%clk 0:00:04]} 45... Rg3+ {[%clk
0:00:09.2]} 46. Ke4 {[%clk 0:00:03.9]} 46... Rc3 {[%clk 0:00:08.8]} 47. Kxe5
{[%clk 0:00:04.1]} 1-0

[Event "*** Titled Tuesday Blitz"]
[Site "Chess.com"]
[Date "2020.12.01"]
[Round "4"]
[White "Joel1285"]
[Black "kkpanu9"]
[Result "0-1"]
[WhiteElo "1826"]
[BlackElo "2113"]
[TimeControl "180+1"]
[EndTime "10:39:12 PST"]
[Termination "kkpanu9 won on time"]

1. d4 {[%clk 0:03:00.9]} 1... Nf6 {[%clk 0:02:59.1]} 2. c4 {[%clk 0:02:59.8]}
2... e6 {[%clk 0:02:58.9]} 3. Nf3 {[%clk 0:02:59.1]} 3... Bb4+ {[%clk
0:02:46.7]} 4. Bd2 {[%clk 0:02:58.8]} 4... a5 {[%clk 0:02:45.2]} 5. a3 {[%clk
0:02:58.3]} 5... Bxd2+ {[%clk 0:02:38.3]} 6. Nbxd2 {[%clk 0:02:59.2]} 6... d5
{[%clk 0:02:18.4]} 7. Qc2 {[%clk 0:02:59.1]} 7... O-O {[%clk 0:02:15.3]} 8. e3
{[%clk 0:02:59.1]} 8... c6 {[%clk 0:02:08.8]} 9. Bd3 {[%clk 0:02:56.8]} 9... b6
{[%clk 0:02:03.1]} 10. O-O {[%clk 0:02:56]} 10... Nbd7 {[%clk 0:02:02.9]} 11.
Rac1 {[%clk 0:02:55.9]} 11... Ba6 {[%clk 0:02:02.6]} 12. cxd5 {[%clk 0:02:13.8]}
12... Bxd3 {[%clk 0:01:51.8]} 13. Qxd3 {[%clk 0:02:14.7]} 13... cxd5 {[%clk
0:01:42.8]} 14. Qb5 {[%clk 0:02:14.6]} 14... Rc8 {[%clk 0:01:19.3]} 15. Nb3
{[%clk 0:02:02.8]} 15... Ne4 {[%clk 0:01:06.3]} 16. Rc6 {[%clk 0:01:42.4]} 16...
Rxc6 {[%clk 0:00:26.1]} 17. Qxc6 {[%clk 0:01:43.3]} 17... Nb8 {[%clk 0:00:13.7]}
18. Qb7 {[%clk 0:01:29]} 18... Nd6 {[%clk 0:00:13.1]} 19. Qa7 {[%clk 0:01:20]}
19... Re8 {[%clk 0:00:06.2]} 20. Rc1 {[%clk 0:01:18.1]} 20... Re7 {[%clk
0:00:06.3]} 21. Qa8 {[%clk 0:01:02.4]} 21... Rc7 {[%clk 0:00:06.1]} 22. Rxc7
{[%clk 0:00:52.7]} 22... Qxc7 {[%clk 0:00:07]} 23. Ne5 {[%clk 0:00:52.3]} 23...
Qb7 {[%clk 0:00:05.4]} 24. Qxb7 {[%clk 0:00:48.5]} 24... Nxb7 {[%clk 0:00:06.3]}
25. Kf1 {[%clk 0:00:44.4]} 25... f6 {[%clk 0:00:06.5]} 26. Nd3 {[%clk
0:00:43.8]} 26... Nd7 {[%clk 0:00:06.6]} 27. Ke2 {[%clk 0:00:43.5]} 27... Kf7
{[%clk 0:00:07]} 28. Kd2 {[%clk 0:00:43.3]} 28... Ke7 {[%clk 0:00:07.6]} 29. Kc3
{[%clk 0:00:38.4]} 29... Kd6 {[%clk 0:00:08]} 30. Nd2 {[%clk 0:00:38.8]} 30...
b5 {[%clk 0:00:07.8]} 31. b4 {[%clk 0:00:32.5]} 31... axb4+ {[%clk 0:00:07.1]}
32. Nxb4 {[%clk 0:00:33.4]} 32... Nb6 {[%clk 0:00:07.3]} 33. Kb3 {[%clk
0:00:31.8]} 33... Nc4 {[%clk 0:00:06.7]} 34. Nxc4+ {[%clk 0:00:28.8]} 34...
dxc4+ {[%clk 0:00:07.6]} 35. Kc3 {[%clk 0:00:28.4]} 35... e5 {[%clk 0:00:07.8]}
36. dxe5+ {[%clk 0:00:19.8]} 36... Kxe5 {[%clk 0:00:08.7]} 37. a4 {[%clk
0:00:20.2]} 37... bxa4 {[%clk 0:00:07.1]} 38. Kxc4 {[%clk 0:00:21.1]} 38... Nd6+
{[%clk 0:00:06.3]} 39. Kc3 {[%clk 0:00:18.6]} 39... Ne4+ {[%clk 0:00:06.1]} 40.
Kb2 {[%clk 0:00:14.4]} 40... Nxf2 {[%clk 0:00:06.2]} 41. Ka3 {[%clk 0:00:09.1]}
41... Ng4 {[%clk 0:00:06.3]} 42. Kxa4 {[%clk 0:00:08.9]} 42... Nxe3 {[%clk
0:00:06.3]} 43. Nc6+ {[%clk 0:00:09.8]} 43... Kf5 {[%clk 0:00:06.1]} 44. Ne7+
{[%clk 0:00:09.3]} 44... Kg5 {[%clk 0:00:05.3]} 45. g3 {[%clk 0:00:04.5]} 45...
Nf1 {[%clk 0:00:05.4]} 46. h4+ {[%clk 0:00:04.2]} 46... Kh6 {[%clk 0:00:04.8]}
47. Nf5+ {[%clk 0:00:04.2]} 47... Kg6 {[%clk 0:00:05.3]} 48. Ne7+ {[%clk
0:00:02.6]} 48... Kf7 {[%clk 0:00:05.1]} 49. Nf5 {[%clk 0:00:02.7]} 49... g6
{[%clk 0:00:04.6]} 50. Nd6+ {[%clk 0:00:02.9]} 50... Ke6 {[%clk 0:00:04.7]} 51.
Ne4 {[%clk 0:00:03.2]} 51... Kf5 {[%clk 0:00:04.4]} 0-1

[Event "*** Titled Tuesday Blitz"]
[Site "Chess.com"]
[Date "2020.12.01"]
[Round "4"]
[White "dpopadic"]
[Black "zala02"]
[Result "1-0"]
[WhiteElo "2401"]
[BlackElo "2165"]
[TimeControl "180+1"]
[EndTime "10:39:14 PST"]
[Termination "dpopadic won by resignation"]

1. e4 {[%clk 0:03:00.8]} 1... c5 {[%clk 0:02:58.1]} 2. Nc3 {[%clk 0:02:59.9]}
2... Nc6 {[%clk 0:02:57.2]} 3. f4 {[%clk 0:02:58.9]} 3... g6 {[%clk 0:02:53.3]}
4. Nf3 {[%clk 0:02:58.2]} 4... Bg7 {[%clk 0:02:53.3]} 5. Bc4 {[%clk 0:02:58.2]}
5... e6 {[%clk 0:02:43.3]} 6. f5 {[%clk 0:02:57.6]} 6... Nge7 {[%clk 0:02:18.1]}
7. fxe6 {[%clk 0:02:56.6]} 7... fxe6 {[%clk 0:02:01.5]} 8. d3 {[%clk 0:02:55.3]}
8... O-O {[%clk 0:02:00.4]} 9. O-O {[%clk 0:02:54.4]} 9... d5 {[%clk 0:01:54.4]}
10. Bb3 {[%clk 0:02:54.1]} 10... Kh8 {[%clk 0:01:50.4]} 11. Bg5 {[%clk
0:02:52.5]} 11... d4 {[%clk 0:01:16.8]} 12. Ne2 {[%clk 0:02:45.8]} 12... Na5
{[%clk 0:01:13.5]} 13. Qd2 {[%clk 0:02:44.8]} 13... Nxb3 {[%clk 0:01:12.4]} 14.
axb3 {[%clk 0:02:43.8]} 14... a6 {[%clk 0:01:10.8]} 15. Bh6 {[%clk 0:02:41]}
15... Nc6 {[%clk 0:01:09]} 16. Ng3 {[%clk 0:02:37.5]} 16... e5 {[%clk
0:01:05.3]} 17. h3 {[%clk 0:02:34.4]} 17... Be6 {[%clk 0:01:00.9]} 18. Rf2
{[%clk 0:02:26.7]} 18... Qd7 {[%clk 0:00:59.4]} 19. Raf1 {[%clk 0:02:17.4]}
19... b5 {[%clk 0:00:54.1]} 20. Bxg7+ {[%clk 0:02:15.4]} 20... Qxg7 {[%clk
0:00:55]} 21. Qg5 {[%clk 0:02:08.8]} 21... h6 {[%clk 0:00:52.9]} 22. Qd2 {[%clk
0:02:03.6]} 22... Kh7 {[%clk 0:00:47.4]} 23. Nh4 {[%clk 0:02:02.5]} 23... c4
{[%clk 0:00:35.9]} 24. bxc4 {[%clk 0:01:53.8]} 24... bxc4 {[%clk 0:00:36.8]} 25.
Nf3 {[%clk 0:01:41.5]} 25... a5 {[%clk 0:00:30.1]} 26. Qc1 {[%clk 0:01:38.8]}
26... a4 {[%clk 0:00:28.1]} 27. Qa1 {[%clk 0:01:37.8]} 27... cxd3 {[%clk
0:00:25.2]} 28. cxd3 {[%clk 0:01:37.1]} 28... Nb4 {[%clk 0:00:24.7]} 29. Qa3
{[%clk 0:01:33.6]} 29... Rfb8 {[%clk 0:00:17.9]} 30. Nd2 {[%clk 0:01:21.5]}
30... Nc2 {[%clk 0:00:11.7]} 31. Qd6 {[%clk 0:01:14.1]} 31... Bg8 {[%clk
0:00:09.6]} 32. Nc4 {[%clk 0:01:13.2]} 32... Ne3 {[%clk 0:00:09.3]} 33. Nxe3
{[%clk 0:01:00.4]} 33... dxe3 {[%clk 0:00:10.2]} 34. Re2 {[%clk 0:00:59.6]}
34... Rd8 {[%clk 0:00:10.9]} 35. Qc5 {[%clk 0:00:50.9]} 35... Rxd3 {[%clk
0:00:09.4]} 36. Rxe3 {[%clk 0:00:51.1]} 36... Rd2 {[%clk 0:00:09.2]} 37. Qc3
{[%clk 0:00:38.5]} 37... Rad8 {[%clk 0:00:08.8]} 38. Kh2 {[%clk 0:00:30.3]}
38... Bb3 {[%clk 0:00:08.8]} 39. Ref3 {[%clk 0:00:25]} 39... h5 {[%clk
0:00:08.5]} 40. Nh1 {[%clk 0:00:19.5]} 40... h4 {[%clk 0:00:08.4]} 41. Nf2
{[%clk 0:00:18.6]} 41... R8d7 {[%clk 0:00:05.2]} 42. Ng4 {[%clk 0:00:18.3]}
42... R2d4 {[%clk 0:00:04.3]} 43. Nf6+ {[%clk 0:00:17.2]} 43... Kh8 {[%clk
0:00:03.6]} 44. Nxd7 {[%clk 0:00:16.9]} 44... Qxd7 {[%clk 0:00:04.5]} 45. Rf8+
{[%clk 0:00:15.4]} 45... Kg7 {[%clk 0:00:05.1]} 46. Qc5 {[%clk 0:00:13.7]} 46...
Rxe4 {[%clk 0:00:04.2]} 47. R8f3 {[%clk 0:00:11.3]} 47... Re2 {[%clk 0:00:04.3]}
48. Qf8+ {[%clk 0:00:10.2]} 48... Kh7 {[%clk 0:00:03.8]} 49. Rf7+ {[%clk
0:00:09.9]} 49... Bxf7 {[%clk 0:00:03.2]} 50. Rxf7+ {[%clk 0:00:09.6]} 1-0

[Event "*** Titled Tuesday Blitz"]
[Site "Chess.com"]
[Date "2020.12.01"]
[Round "4"]
[White "gmpeter008"]
[Black "Sashadav97"]
[Result "0-1"]
[WhiteElo "2427"]
[BlackElo "2632"]
[TimeControl "180+1"]
[EndTime "10:39:15 PST"]
[Termination "Sashadav97 won by checkmate"]

1. d4 {[%clk 0:03:00.7]} 1... Nf6 {[%clk 0:02:57.3]} 2. Bf4 {[%clk 0:03:00.7]}
2... e6 {[%clk 0:02:42]} 3. e3 {[%clk 0:03:00.7]} 3... b6 {[%clk 0:02:42]} 4.
Nf3 {[%clk 0:03:00.8]} 4... Bb7 {[%clk 0:02:42.2]} 5. a4 {[%clk 0:02:56]} 5...
a5 {[%clk 0:02:34]} 6. c3 {[%clk 0:02:53.7]} 6... Be7 {[%clk 0:02:31.5]} 7. Nbd2
{[%clk 0:02:54.1]} 7... O-O {[%clk 0:02:31.3]} 8. Bd3 {[%clk 0:02:53.8]} 8...
Nh5 {[%clk 0:02:31.3]} 9. Bg3 {[%clk 0:02:51.2]} 9... h6 {[%clk 0:02:24.5]} 10.
Ne5 {[%clk 0:02:50.1]} 10... Nxg3 {[%clk 0:02:22.6]} 11. hxg3 {[%clk 0:02:50]}
11... d6 {[%clk 0:02:22.1]} 12. Nef3 {[%clk 0:02:06.8]} 12... Nd7 {[%clk
0:02:18.7]} 13. Be4 {[%clk 0:02:04.8]} 13... d5 {[%clk 0:02:10.8]} 14. Bd3
{[%clk 0:02:04.3]} 14... f5 {[%clk 0:02:11.3]} 15. Qe2 {[%clk 0:02:01]} 15...
Bd6 {[%clk 0:02:08.1]} 16. Nh4 {[%clk 0:01:54.3]} 16... Qf6 {[%clk 0:02:04.2]}
17. f4 {[%clk 0:01:49.7]} 17... g5 {[%clk 0:01:46.1]} 18. Nhf3 {[%clk
0:01:48.1]} 18... g4 {[%clk 0:01:43.7]} 19. Ne5 {[%clk 0:01:46.8]} 19... Bxe5
{[%clk 0:01:36.5]} 20. fxe5 {[%clk 0:01:44.6]} 20... Qg5 {[%clk 0:01:35.6]} 21.
Qf2 {[%clk 0:01:39.4]} 21... Kg7 {[%clk 0:01:33]} 22. Nb3 {[%clk 0:01:37.9]}
22... h5 {[%clk 0:01:31.7]} 23. Nc1 {[%clk 0:01:37.7]} 23... Rh8 {[%clk
0:01:27.6]} 24. Ne2 {[%clk 0:01:37.6]} 24... Nf8 {[%clk 0:01:27.6]} 25. Nf4
{[%clk 0:01:37.1]} 25... Bc8 {[%clk 0:01:28.1]} 26. O-O-O {[%clk 0:01:36.6]}
26... Ng6 {[%clk 0:01:27.3]} 27. Bb5 {[%clk 0:01:25.1]} 27... Nxf4 {[%clk
0:01:23.7]} 28. exf4 {[%clk 0:01:18.4]} 28... Qe7 {[%clk 0:01:22.3]} 29. Rh4
{[%clk 0:01:18.6]} 29... Bd7 {[%clk 0:01:21.4]} 30. Rdh1 {[%clk 0:01:12.8]}
30... Kg6 {[%clk 0:01:18.2]} 31. Qe2 {[%clk 0:01:09.9]} 31... c6 {[%clk
0:01:13.6]} 32. Bd3 {[%clk 0:01:09.1]} 32... c5 {[%clk 0:00:59]} 33. Bb5 {[%clk
0:01:02]} 33... c4 {[%clk 0:00:46.1]} 34. Bxd7 {[%clk 0:00:34.5]} 34... Qxd7
{[%clk 0:00:47]} 35. Qc2 {[%clk 0:00:21.4]} 35... b5 {[%clk 0:00:46.7]} 36. Kb1
{[%clk 0:00:21.8]} 36... b4 {[%clk 0:00:44.1]} 37. Kc1 {[%clk 0:00:12.9]} 37...
Rab8 {[%clk 0:00:34.9]} 38. cxb4 {[%clk 0:00:11.2]} 38... Rxb4 {[%clk
0:00:34.1]} 39. Rxg4+ {[%clk 0:00:08.8]} 39... hxg4 {[%clk 0:00:31.7]} 40. Rxh8
{[%clk 0:00:09.4]} 40... Rxa4 {[%clk 0:00:28.3]} 41. Rg8+ {[%clk 0:00:09.7]}
41... Kf7 {[%clk 0:00:24]} 42. Rh8 {[%clk 0:00:10.1]} 42... Qb5 {[%clk
0:00:23.8]} 43. Rh7+ {[%clk 0:00:09.8]} 43... Kg6 {[%clk 0:00:23.5]} 44. Rh2
{[%clk 0:00:05.8]} 44... Ra1+ {[%clk 0:00:19.1]} 45. Kd2 {[%clk 0:00:06.1]}
45... Ra2 {[%clk 0:00:19.5]} 46. Kc1 {[%clk 0:00:05.4]} 46... Qb4 {[%clk
0:00:15.3]} 47. Qc3 {[%clk 0:00:05.2]} 47... Qa4 {[%clk 0:00:15.6]} 48. Rh1
{[%clk 0:00:04.2]} 48... Ra1+ {[%clk 0:00:15.5]} 49. Kd2 {[%clk 0:00:04.6]}
49... Rxh1 {[%clk 0:00:16.1]} 50. Ke3 {[%clk 0:00:04.2]} 50... Qd1 {[%clk
0:00:15.6]} 51. Qxa5 {[%clk 0:00:03.9]} 51... Re1+ {[%clk 0:00:15.3]} 52. Kf2
{[%clk 0:00:03.6]} 52... Qe2# {[%clk 0:00:15]} 0-1